fUSD/lending_fUSD_20250524
["ID","MTS","AMOUNT","RATE_DAILY","PERIOD"]
[362245682,1748117601181,-420.0,0.00019671,2]
[362245683,1748117601203,-618.09,0.00019671,2]
[362245684,1748117601225,-492.97,0.00019675,2]
[362245685,1748117601246,-491.96,0.00019675,2]
[362245686,1748117601269,-152.464525,0.00019698,2]
[362245687,1748117601290,-886.04,0.00019698,2]
[362245688,1748117601312,-186.457943,0.00019698,2]
[362245689,1748117601335,-151.0,0.00019698,2]
[362245690,1748117601359,-163.071458,0.00019698,2]
[362245691,1748117601383,-529.4,0.00019698,2]
[362245692,1748117601405,-506.07,0.00019698,2]
[362245693,1748117601428,-2331.48,0.00019698,2]
[362245694,1748117601452,-6143.93,0.00019698,2]
[362245695,1748117601476,-4230.85,0.00019698,2]
[362245696,1748117601501,-7374.08,0.00019698,2]
[362245697,1748117601526,-1352.04,0.00019698,2]
[362245698,1748117601550,-202.6537818,0.00019698,2]
[362245699,1748117601574,-157.892716,0.00019698,2]
[362245700,1748117601599,-713.21,0.00019698,2]
[362245701,1748117601624,-2498.63,0.00019698,2]
[362245702,1748117601647,-807.50637,0.00019698,2]
[362245703,1748117602068,-665.35,0.00019698,2]
[362245704,1748117602128,-3833.23,0.00019698,2]
[362245705,1748117602152,-807.50637,0.00019698,2]
[362245706,1748117602174,-508.45,0.00019698,2]
[362245707,1748117602197,-5208.31,0.00019698,2]
[362245708,1748117602220,-151.0,0.00019698,2]
[362245709,1748117602244,-1114.08,0.00019698,2]
[362245710,1748117602268,-845.24,0.00019698,2]
[362245711,1748117602292,-193.611375,0.00019698,2]
[362245712,1748117602314,-193.611375,0.00019698,2]
[362245713,1748117602335,-151.0,0.00019698,2]
[362245714,1748117602357,-198.788629,0.00019698,2]
[362245715,1748117602377,-2965.61,0.00019698,2]
[362245716,1748117602399,-198.788629,0.00019698,2]
[362245717,1748117602420,-2277.5,0.00019698,2]
[362245718,1748117602442,-151.0,0.00019698,2]
[362245719,1748117602464,-1790.722325,0.00019698,2]
[362245720,1748117602487,-1790.722325,0.00019698,2]
[362245721,1748117602509,-577.26,0.00019698,2]
[362245722,1748117602531,-665.45,0.00019698,2]
[362245723,1748117602556,-698.42,0.00019698,2]
[362245724,1748117602578,-55107.32,0.00019698,2]
[362245725,1748117602601,-357.532724,0.00019698,2]
[362245726,1748117602626,-885.17,0.00019698,2]
[362245727,1748117602650,-357.532724,0.00019698,2]
[362245728,1748117602674,-151.0,0.00019698,2]
[362245729,1748117602696,-152.925138,0.00019698,2]
[362245730,1748117602717,-151.0,0.00019698,2]
[362245731,1748117602739,-800.74,0.00019698,2]
[362245732,1748117602761,-919.53,0.00019698,2]
[362245733,1748117602783,-420.0,0.00019698,2]
[362245734,1748117602805,-618.09,0.00019698,2]
[362245735,1748117602827,-2007.28,0.000197,2]
[362245736,1748117602849,-353.58,0.000197,2]
[362245737,1748117602872,-353.58,0.000197,2]
[362245738,1748117602899,-206.11462213,0.00019716,2]
[362245739,1748117602925,-2611.13655737,0.00019717,2]
[362245740,1748117602947,-150.0,0.00019721,2]
[362245741,1748117602970,-1021.27244055,0.00019723,2]
[362245742,1748117602992,-152.464525,0.00019726,2]
[362245743,1748117603021,-886.04,0.00019726,2]
[362245744,1748117603046,-529.4,0.00019726,2]
[362245745,1748117603069,-506.07,0.00019726,2]
[362245746,1748117603093,-2331.48,0.00019726,2]
[362245747,1748117603116,-6143.93,0.00019726,2]
[362245748,1748117603138,-4230.85,0.00019726,2]
[362245749,1748117603164,-7374.08,0.00019726,2]
[362245750,1748117603187,-1352.04,0.00019726,2]
[362245751,1748117603210,-151.0,0.00019726,2]
[362245752,1748117603234,-215.105622,0.00019726,2]
[362245753,1748117603256,-215.105622,0.00019726,2]
[362245754,1748117603279,-713.21,0.00019726,2]
[362245755,1748117603302,-2498.63,0.00019726,2]
[362245756,1748117603328,-665.35,0.00019726,2]
[362245757,1748117603352,-3833.23,0.00019726,2]
[362245758,1748117603376,-508.45,0.00019726,2]
[362245759,1748117603398,-5208.31,0.00019726,2]
[362245760,1748117603423,-1114.08,0.00019726,2]
[362245761,1748117603444,-845.24,0.00019726,2]
[362245762,1748117603466,-423.0121784,0.00019726,2]
[362245763,1748117603488,-2965.61,0.00019726,2]
[362245764,1748117603510,-2277.5,0.00019726,2]
[362245765,1748117603532,-577.26,0.00019726,2]
[362245766,1748117603554,-665.45,0.00019726,2]
[362245767,1748117603578,-698.42,0.00019726,2]
[362245768,1748117603600,-55107.32,0.00019726,2]
[362245769,1748117603623,-885.17,0.00019726,2]
[362245770,1748117603645,-800.74,0.00019726,2]
[362245771,1748117603666,-919.53,0.00019726,2]
[362245772,1748117603688,-420.0,0.00019726,2]
[362245773,1748117603710,-618.09,0.00019726,2]
[362245774,1748117603733,-353.58,0.00019726,2]
[362245775,1748117603755,-353.58,0.00019726,2]
[362245776,1748117603777,-790.51,0.00019726,2]
[362245777,1748117603800,-353.58,0.00019726,2]
[362245778,1748117603825,-706.84,0.00019726,2]
[362245779,1748117603849,-1000.0,0.00019746,2]
[362245780,1748117603871,-688.083,0.00019748,2]
[362245781,1748117603893,-554.0,0.00019748,2]
[362245782,1748117603921,-439.541,0.00019748,2]
[362245783,1748117603945,-886.04,0.00019753,2]
[362245784,1748117603967,-529.4,0.00019753,2]
[362245785,1748117603991,-506.07,0.00019753,2]
[362245786,1748117604015,-2331.48,0.00019753,2]
[362245787,1748117604038,-6143.93,0.00019753,2]
[362245788,1748117604063,-4230.85,0.00019753,2]
[362245789,1748117604086,-7374.08,0.00019753,2]
[362245790,1748117604109,-1352.04,0.00019753,2]
[362245791,1748117604131,-713.21,0.00019753,2]
[362245792,1748117604152,-2498.63,0.00019753,2]
[362245793,1748117604175,-807.50637,0.00019753,2]
[362245794,1748117604197,-665.35,0.00019753,2]
[362245795,1748117604219,-3833.23,0.00019753,2]
[362245796,1748117604242,-807.50637,0.00019753,2]
[362245797,1748117604266,-508.45,0.00019753,2]
[362245798,1748117604289,-5208.31,0.00019753,2]
[362245799,1748117604312,-234.632581,0.00019753,2]
[362245800,1748117604336,-1114.08,0.00019753,2]
[362245801,1748117604359,-845.24,0.00019753,2]
[362245802,1748117604383,-193.611375,0.00019753,2]
[362245803,1748117604406,-193.611375,0.00019753,2]
[362245804,1748117604429,-151.0,0.00019753,2]
[362245805,1748117604452,-198.788629,0.00019753,2]
[362245806,1748117604477,-2965.61,0.00019753,2]
[362245807,1748117604500,-198.788629,0.00019753,2]
[362245808,1748117604524,-2277.5,0.00019753,2]
[362245809,1748117604549,-151.0,0.00019753,2]
[362245810,1748117604572,-1790.722325,0.00019753,2]
[362245811,1748117604595,-1790.722325,0.00019753,2]
[362245812,1748117604619,-577.26,0.00019753,2]
[362245813,1748117604644,-665.45,0.00019753,2]
[362245814,1748117604669,-698.42,0.00019753,2]
[362245815,1748117604696,-55107.32,0.00019753,2]
[362245816,1748117604720,-357.532724,0.00019753,2]
[362245817,1748117604749,-885.17,0.00019753,2]
[362245818,1748117604774,-357.532724,0.00019753,2]
[362245819,1748117604798,-154.276222,0.00019753,2]
[362245820,1748117604822,-800.74,0.00019753,2]
[362245821,1748117604847,-919.53,0.00019753,2]
[362245822,1748117604870,-420.0,0.00019753,2]
[362245823,1748117604893,-618.09,0.00019753,2]
[362245824,1748117604920,-2611.13655737,0.00019778,2]
[362245825,1748117604945,-152.464525,0.0001978,2]
[362245826,1748117604969,-886.04,0.0001978,2]
[362245827,1748117604994,-151.0,0.0001978,2]
[362245828,1748117605020,-529.4,0.0001978,2]
[362245829,1748117605045,-506.07,0.0001978,2]
[362245830,1748117605070,-2331.48,0.0001978,2]
[362245831,1748117605094,-6143.93,0.0001978,2]
[362245832,1748117605118,-4230.85,0.0001978,2]
[362245833,1748117605142,-7374.08,0.0001978,2]
[362245834,1748117605165,-1352.04,0.0001978,2]
[362245835,1748117605187,-151.0,0.0001978,2]
[362245836,1748117605209,-215.105622,0.0001978,2]
[362245837,1748117605230,-215.105622,0.0001978,2]
[362245838,1748117605255,-713.21,0.0001978,2]
[362245839,1748117605279,-2498.63,0.0001978,2]
[362245840,1748117605302,-665.35,0.0001978,2]
[362245841,1748117605326,-3833.23,0.0001978,2]
[362245842,1748117605350,-508.45,0.0001978,2]
[362245843,1748117605373,-5208.31,0.0001978,2]
[362245844,1748117605403,-1114.08,0.0001978,2]
[362245845,1748117605427,-845.24,0.0001978,2]
[362245846,1748117605452,-2965.61,0.0001978,2]
[362245847,1748117605603,-2277.5,0.0001978,2]
[362245848,1748117605667,-577.26,0.0001978,2]
[362245849,1748117605691,-665.45,0.0001978,2]
[362245850,1748117605715,-698.42,0.0001978,2]
[362245851,1748117605739,-55107.32,0.0001978,2]
[362245852,1748117605764,-885.17,0.0001978,2]
[362245853,1748117605787,-800.74,0.0001978,2]
[362245854,1748117605811,-919.53,0.0001978,2]
[362245855,1748117605835,-376.03408175,0.0001978,2]
[362245856,1748117605857,-618.09,0.0001978,2]
[362245857,1748117605882,-152.464525,0.00019808,2]
[362245858,1748117605906,-886.21541697,0.00019808,2]
[362245859,1748117605929,-151.0,0.00019808,2]
[362245860,1748117605952,-374.185702,0.00019808,2]
[362245861,1748117605975,-374.185702,0.00019808,2]
[362245862,1748117605999,-529.52568016,0.00019808,2]
[362245863,1748117606023,-506.29902534,0.00019808,2]
[362245864,1748117606048,-2331.56874387,0.00019808,2]
[362245865,1748117606072,-6143.97973601,0.00019808,2]
[362245866,1748117606096,-4230.88539659,0.00019808,2]
[362245867,1748117606119,-7374.23932189,0.00019808,2]
[362245868,1748117606143,-1352.06141835,0.00019808,2]
[362245869,1748117606166,-713.41,0.00019808,2]
[362245870,1748117606194,-2498.7,0.00019808,2]
[362245871,1748117606218,-665.56072016,0.00019808,2]
[362245872,1748117606242,-3833.40307981,0.00019808,2]
[362245873,1748117606266,-508.60426781,0.00019808,2]
[362245874,1748117606289,-5208.51273821,0.00019808,2]
[362245875,1748117606315,-1114.11,0.00019808,2]
[362245876,1748117606340,-845.36,0.00019808,2]
[362245877,1748117606364,-2965.6570365,0.00019808,2]
[362245878,1748117606387,-2277.71559109,0.00019808,2]
[362245879,1748117606409,-577.36644996,0.00019808,2]
[362245880,1748117606433,-665.67317249,0.00019808,2]
[362245881,1748117606458,-698.62654468,0.00019808,2]
[362245882,1748117606481,-55107.50916666,0.00019808,2]
[362245883,1748117606505,-885.2197135,0.00019808,2]
[362245884,1748117606529,-800.86885409,0.00019808,2]
[362245885,1748117606553,-919.60931265,0.00019808,2]
[362245886,1748117606576,-618.11377851,0.00019808,2]
[362245887,1748117606600,-1021.27244055,0.00019812,2]
[362245888,1748117606624,-1000.0,0.00019829,2]
[362245889,1748117606648,-2611.13655737,0.00019839,2]
[362245890,1748117606672,-150.0,0.00019847,2]
[362245891,1748117606695,-150.0,0.00019859,2]
[362245892,1748117606717,-500.0,0.00019863,2]
[362245893,1748117606740,-1000.0,0.00019886,2]
[362245894,1748117606762,-804.87782536,0.000199,2]
[362245895,1748117606785,-2611.13655737,0.000199,2]
[362245896,1748117606809,-1535.29582474,0.000199,2]
[362245897,1748117606832,-1470.65316446,0.000199,2]
[362245898,1748117606855,-1470.6531643,0.000199,2]
[362245899,1748117606878,-1470.6531643,0.000199,2]
[362245900,1748117606903,-1470.6531643,0.000199,2]
[362245901,1748117606926,-1470.6531643,0.000199,2]
[362245902,1748117606949,-804.95541775,0.00019905,2]
[362245903,1748117606973,-150.0,0.00019909,2]
[362245904,1748117606996,-493.67,0.00019916,2]
[362245905,1748117607018,-493.1,0.00019916,2]
[362245906,1748117607040,-493.05,0.00019916,2]
[362245907,1748117607064,-502.4,0.00019916,2]
[362245908,1748117607086,-494.91,0.00019916,2]
[362245909,1748117607108,-497.5,0.00019916,2]
[362245910,1748117607129,-500.51,0.00019916,2]
[362245911,1748117607151,-500.0,0.00019921,2]
[362245912,1748117607175,-150.0,0.00019937,2]
[362245913,1748117607198,-502.85,0.00019961,2]
[362245914,1748117607219,-374.185702,0.00019986,2]
[362245915,1748117607241,-374.185702,0.00019986,2]
[362245916,1748117607263,-151.0,0.00019986,2]
[362245917,1748117607285,-10673.3517074,0.00019986,2]
[362245918,1748117607307,-9608.8484348,0.00019986,2]
[362245919,1748117607328,-8544.3451623,0.00019986,2]
[362245920,1748117607350,-7479.8418898,0.00019986,2]
[362245921,1748117607372,-6415.3386172,0.00019986,2]
[362245922,1748117607394,-151.0,0.00019986,2]
[362245923,1748117607415,-215.105622,0.00019986,2]
[362245924,1748117607437,-215.105622,0.00019986,2]
[362245925,1748117607460,-807.50637,0.00019986,2]
[362245926,1748117607482,-807.50637,0.00019986,2]
[362245927,1748117607507,-193.611375,0.00019986,2]
[362245928,1748117607530,-193.611375,0.00019986,2]
[362245929,1748117607554,-151.0,0.00019986,2]
[362245930,1748117607576,-198.788629,0.00019986,2]
[362245931,1748117607600,-198.788629,0.00019986,2]
[362245932,1748117607624,-290.552889,0.00019986,2]
[362245933,1748117607647,-1790.722325,0.00019986,2]
[362245934,1748117607670,-1790.722325,0.00019986,2]
[362245935,1748117607694,-116953.2111984,0.00019986,2]
[362245936,1748117607717,-98855.4049504,0.00019986,2]
[362245937,1748117607741,-80757.5987023,0.00019986,2]
[362245938,1748117607763,-62659.7924543,0.00019986,2]
[362245939,1748117607785,-44561.9862062,0.00019986,2]
[362245940,1748117607808,-357.532724,0.00019986,2]
[362245941,1748117607832,-357.532724,0.00019986,2]
[362245942,1748117607855,-4505.2747189,0.00019986,2]
[362245943,1748117607876,-3808.1105443,0.00019986,2]
[362245944,1748117607900,-3110.9463696,0.00019986,2]
[362245945,1748117607922,-2413.782195,0.00019986,2]
[362245946,1748117607945,-1716.6180203,0.00019986,2]
[362245947,1748117607968,-807.50637,0.00019992,2]
[362245948,1748117607991,-807.50637,0.00019992,2]
[362245949,1748117608014,-193.611375,0.00019992,2]
[362245950,1748117608036,-193.611375,0.00019992,2]
[362245951,1748117608060,-151.0,0.00019992,2]
[362245952,1748117608082,-493.94,0.00019992,2]
[362245953,1748117608105,-506.94,0.00019992,2]
[362245954,1748117608128,-505.39,0.00019992,2]
[362245955,1748117608150,-502.97,0.00019992,2]
[362245956,1748117608175,-26803.2398203,0.0002,2]
[362245957,1748117608233,-497.84,0.0002,2]
[362245958,1748117608255,-503.39,0.0002,2]
[362245959,1748117608278,-502.76,0.0002,2]
[362245960,1748117608302,-1942800.12887871,0.0002,2]
[362245961,1748117608325,-39583.29,0.0002,2]
[362245962,1748117608350,-116412.64985348,0.0002,2]
[362245963,1748117614868,-420.0,0.00019178,2]
[362245964,1748117614891,-421.37755878,0.00019178,2]
[362245965,1748117614916,-420.0,0.00019178,2]
[362245966,1748117614940,-420.0,0.00019178,2]
[362245967,1748117614963,-420.0,0.00019178,2]
[362245968,1748117614986,-420.0,0.00019178,2]
[362245969,1748117615008,-420.0,0.00019178,2]
[362245970,1748117615033,-420.0,0.00019178,2]
[362245971,1748117615056,-420.0,0.00019178,2]
[362245972,1748117615079,-467.25013895,0.00019178,2]
[362245973,1748117615101,-420.0,0.00019178,2]
[362245974,1748117615124,-420.0,0.00019178,2]
[362245975,1748117615146,-420.0,0.00019178,2]
[362245976,1748117615170,-420.0,0.00019178,2]
[362245977,1748117615193,-420.0,0.00019178,2]
[362245978,1748117615217,-420.0,0.00019178,2]
[362245979,1748117615240,-420.23009865,0.00019178,2]
[362245980,1748117615264,-899.86,0.00019178,2]
[362245981,1748117615287,-300.0,0.00019178,2]
[362245982,1748117615310,-420.0,0.00019178,2]
[362245983,1748117615333,-420.0,0.00019178,2]
[362245984,1748117615357,-274.26686473,0.00019178,2]
[362245985,1748117615390,-429.99051086,0.00019178,2]
[362245986,1748117615412,-420.0,0.00019178,2]
[362245987,1748117615436,-420.0,0.00019178,2]
[362245988,1748117615460,-420.0,0.00019178,2]
[362245989,1748117615483,-420.0,0.00019178,2]
[362245990,1748117615506,-420.0,0.00019178,2]
[362245991,1748117615529,-420.0,0.00019178,2]
[362245992,1748117615552,-420.0,0.00019178,2]
[362245993,1748117615574,-424.78574664,0.00019178,2]
[362245994,1748117615599,-420.0,0.00019178,2]
[362245995,1748117615623,-420.0,0.00019178,2]
[362245996,1748117615646,-420.0,0.00019178,2]
[362245997,1748117615669,-420.0,0.00019178,2]
[362245998,1748117615692,-403.5014688,0.00019178,2]
[362245999,1748117615716,-427.37727922,0.00019178,2]
[362246000,1748117615739,-420.0,0.00019178,2]
[362246001,1748117615762,-426.81929293,0.00019178,2]
[362246002,1748117615785,-420.0,0.00019178,2]
[362246003,1748117615808,-420.0,0.00019178,2]
[362246004,1748117615831,-420.0,0.00019178,2]
[362246005,1748117615855,-420.0,0.00019178,2]
[362246006,1748117615882,-420.0,0.00019178,2]
[362246007,1748117615908,-420.0,0.00019178,2]
[362246008,1748117615932,-420.0,0.00019178,2]
[362246009,1748117615956,-420.0,0.00019178,2]
[362246010,1748117615980,-511.95557639,0.00019178,2]
[362246011,1748117616004,-585.03,0.00019178,2]
[362246012,1748117616028,-420.0,0.00019178,2]
[362246013,1748117616052,-470.64,0.00019178,2]
[362246014,1748117616076,-420.0,0.00019178,2]
[362246015,1748117616100,-420.0,0.00019178,2]
[362246016,1748117616124,-280.6681646,0.00019178,2]
[362246017,1748117616146,-420.0,0.00019178,2]
[362246018,1748117616169,-420.0,0.00019178,2]
[362246019,1748117616192,-420.0,0.00019178,2]
[362246020,1748117616215,-424.24592988,0.00019178,2]
[362246021,1748117616238,-420.0,0.00019178,2]
[362246022,1748117616262,-420.0,0.00019178,2]
[362246023,1748117616285,-420.0,0.00019178,2]
[362246024,1748117616308,-420.0,0.00019178,2]
[362246025,1748117616331,-420.0,0.00019178,2]
[362246026,1748117616354,-420.0,0.00019178,2]
[362246027,1748117616379,-420.0,0.00019178,2]
[362246028,1748117616404,-1548.76,0.00019205,2]
[362246029,1748117616430,-420.0,0.00019205,2]
[362246030,1748117616453,-420.0,0.00019205,2]
[362246031,1748117616478,-420.0,0.00019205,2]
[362246032,1748117616501,-424.12856864,0.00019205,2]
[362246033,1748117616526,-420.0,0.00019205,2]
[362246034,1748117616550,-420.0,0.00019205,2]
[362246035,1748117616573,-420.0,0.00019205,2]
[362246036,1748117616597,-899.86,0.00019205,2]
[362246037,1748117616619,-300.0,0.00019205,2]
[362246038,1748117616642,-420.0,0.00019205,2]
[362246039,1748117616664,-420.0,0.00019205,2]
[362246040,1748117616688,-420.0,0.00019205,2]
[362246041,1748117616711,-420.0,0.00019205,2]
[362246042,1748117616733,-420.0,0.00019205,2]
[362246043,1748117616756,-420.0,0.00019205,2]
[362246044,1748117616779,-422.13375278,0.00019205,2]
[362246045,1748117616802,-420.0,0.00019205,2]
[362246046,1748117616828,-420.0,0.00019205,2]
[362246047,1748117616852,-420.0,0.00019205,2]
[362246048,1748117616876,-420.0,0.00019205,2]
[362246049,1748117616901,-420.0,0.00019205,2]
[362246050,1748117616926,-420.0,0.00019205,2]
[362246051,1748117616954,-420.0,0.00019205,2]
[362246052,1748117616980,-420.0,0.00019205,2]
[362246053,1748117617022,-420.0,0.00019205,2]
[362246054,1748117617049,-420.0,0.00019205,2]
[362246055,1748117617075,-479.1688308,0.00019205,2]
[362246056,1748117617101,-420.0,0.00019205,2]
[362246057,1748117617129,-585.03,0.00019205,2]
[362246058,1748117617156,-470.64,0.00019205,2]
[362246059,1748117617180,-420.0,0.00019205,2]
[362246060,1748117617206,-425.94598051,0.00019205,2]
[362246061,1748117617233,-420.0,0.00019205,2]
[362246062,1748117617257,-420.0,0.00019205,2]
[362246063,1748117617282,-420.0,0.00019205,2]
[362246064,1748117617307,-420.0,0.00019205,2]
[362246065,1748117617330,-420.0,0.00019205,2]
[362246066,1748117617353,-420.0,0.00019205,2]
[362246067,1748117617376,-420.0,0.00019205,2]
[362246068,1748117617401,-420.0,0.00019205,2]
[362246069,1748117617426,-1548.76,0.00019232,2]
[362246070,1748117617451,-420.0,0.00019232,2]
[362246071,1748117617475,-420.0,0.00019232,2]
[362246072,1748117617509,-420.0,0.00019232,2]
[362246073,1748117617534,-274.67163499,0.00019232,2]
[362246074,1748117617563,-899.86,0.00019232,2]
[362246075,1748117617589,-420.0,0.00019232,2]
[362246076,1748117617615,-420.0,0.00019232,2]
[362246077,1748117617640,-420.0,0.00019232,2]
[362246078,1748117617664,-420.0,0.00019232,2]
[362246079,1748117617692,-420.0,0.00019232,2]
[362246080,1748117618044,-420.0,0.00019232,2]
[362246081,1748117618092,-420.0,0.00019232,2]
[362246082,1748117618115,-420.0,0.00019232,2]
[362246083,1748117618136,-420.0,0.00019232,2]
[362246084,1748117618158,-585.03,0.00019232,2]
[362246085,1748117618180,-470.64,0.00019232,2]
[362246086,1748117618202,-420.0,0.00019232,2]
[362246087,1748117618224,-420.0,0.00019232,2]
[362246088,1748117618245,-420.0,0.00019232,2]
[362246089,1748117618267,-420.0,0.00019232,2]
[362246090,1748117618289,-420.0,0.00019232,2]
[362246091,1748117618310,-420.0,0.00019232,2]
[362246092,1748117618337,-1548.76,0.0001926,2]
[362246093,1748117618360,-420.0,0.0001926,2]
[362246094,1748117618382,-420.0,0.0001926,2]
[362246095,1748117618404,-899.86,0.0001926,2]
[362246096,1748117618427,-585.03,0.0001926,2]
[362246097,1748117618448,-470.64,0.0001926,2]
[362246098,1748117618470,-420.0,0.0001926,2]
[362246099,1748117618492,-420.0,0.0001926,2]
[362246100,1748117618515,-1548.76,0.00019287,2]
[362246101,1748117618537,-420.0,0.00019287,2]
[362246102,1748117618561,-420.0,0.00019287,2]
[362246103,1748117618584,-899.86,0.00019287,2]
[362246104,1748117618608,-585.03,0.00019287,2]
[362246105,1748117618630,-470.64,0.00019287,2]
[362246106,1748117618652,-420.0,0.00019287,2]
[362246107,1748117618675,-1548.76,0.00019315,2]
[362246108,1748117618699,-420.0,0.00019315,2]
[362246109,1748117618721,-420.0,0.00019315,2]
[362246110,1748117618745,-899.86,0.00019315,2]
[362246111,1748117618768,-585.03,0.00019315,2]
[362246112,1748117618791,-470.64,0.00019315,2]
[362246113,1748117618814,-420.0,0.00019315,2]
[362246114,1748117618838,-1548.76,0.00019342,2]
[362246115,1748117618862,-420.0,0.00019342,2]
[362246116,1748117618884,-420.0,0.00019342,2]
[362246117,1748117618909,-899.86,0.00019342,2]
[362246118,1748117618932,-585.03,0.00019342,2]
[362246119,1748117618955,-470.64,0.00019342,2]
[362246120,1748117618979,-395.82629848,0.00019342,2]
[362246121,1748117619003,-1548.76,0.00019369,2]
[362246122,1748117619029,-165.80017772,0.00019369,2]
[362246123,1748117619055,-420.0,0.00019369,2]
[362246124,1748117619081,-899.86,0.00019369,2]
[362246125,1748117619108,-585.03,0.00019369,2]
[362246126,1748117619131,-470.64,0.00019369,2]
[362246127,1748117619157,-1548.76,0.00019397,2]
[362246128,1748117619181,-420.0,0.00019397,2]
[362246129,1748117619204,-899.86,0.00019397,2]
[362246130,1748117619228,-585.03,0.00019397,2]
[362246131,1748117619252,-470.64,0.00019397,2]
[362246132,1748117619276,-1548.76,0.00019424,2]
[362246133,1748117619299,-420.0,0.00019424,2]
[362246134,1748117619323,-899.86,0.00019424,2]
[362246135,1748117619347,-585.03,0.00019424,2]
[362246136,1748117619371,-470.64,0.00019424,2]
[362246137,1748117619394,-1548.76,0.00019452,2]
[362246138,1748117619418,-462.96,0.00019452,2]
[362246139,1748117619441,-899.86,0.00019452,2]
[362246140,1748117619464,-585.03,0.00019452,2]
[362246141,1748117619487,-470.64,0.00019452,2]
[362246142,1748117619510,-1548.76,0.00019479,2]
[362246143,1748117619533,-899.86,0.00019479,2]
[362246144,1748117619557,-585.03,0.00019479,2]
[362246145,1748117619580,-470.64,0.00019479,2]
[362246146,1748117619604,-1548.76,0.00019506,2]
[362246147,1748117619628,-899.86,0.00019506,2]
[362246148,1748117619651,-585.03,0.00019506,2]
[362246149,1748117619673,-470.64,0.00019506,2]
[362246150,1748117619697,-1548.76,0.00019534,2]
[362246151,1748117619720,-899.86,0.00019534,2]
[362246152,1748117619742,-585.03,0.00019534,2]
[362246153,1748117619764,-470.64,0.00019534,2]
[362246154,1748117619787,-1548.76,0.00019561,2]
[362246155,1748117619809,-899.86,0.00019561,2]
[362246156,1748117619834,-585.03,0.00019561,2]
[362246157,1748117619859,-470.64,0.00019561,2]
[362246158,1748117619884,-1548.76,0.00019589,2]
[362246159,1748117619911,-899.86,0.00019589,2]
[362246160,1748117619935,-585.03,0.00019589,2]
[362246161,1748117619959,-470.64,0.00019589,2]
[362246162,1748117619986,-1548.76,0.00019616,2]
[362246163,1748117620011,-899.86,0.00019616,2]
[362246164,1748117620037,-585.03,0.00019616,2]
[362246165,1748117620063,-470.64,0.00019616,2]
[362246166,1748117620089,-1548.76,0.00019643,2]
[362246167,1748117620114,-899.86,0.00019643,2]
[362246168,1748117620142,-585.03,0.00019643,2]
[362246169,1748117620165,-470.64,0.00019643,2]
[362246170,1748117620189,-1548.76,0.00019671,2]
[362246171,1748117620212,-899.86,0.00019671,2]
[362246172,1748117620234,-585.03,0.00019671,2]
[362246173,1748117620258,-470.64,0.00019671,2]
[362246174,1748117620281,-1548.76,0.00019698,2]
[362246175,1748117620306,-899.86,0.00019698,2]
[362246176,1748117620329,-585.03,0.00019698,2]
[362246177,1748117620351,-470.64,0.00019698,2]
[362246178,1748117620374,-1548.76,0.00019726,2]
[362246179,1748117620396,-899.86,0.00019726,2]
[362246180,1748117620419,-585.03,0.00019726,2]
[362246181,1748117620440,-470.64,0.00019726,2]